bitfinex/quotes_ETHUSD_20241223
["timestamp","ask_amount","ask_price","bid_price","bid_amount"]
[1734979101090,3.0,3331.1,3330.4,0.8115]
[1734979101326,3.0,3331.1,3330.6,0.06767489]
[1734979101509,3.0,3331.1,3330.5,0.06773552]
[1734979101510,3.602225,3331.1,3330.5,0.06773552]
[1734979101709,3.0,3331.0,3330.7,0.06761427]
[1734979101907,3.0,3331.0,3330.4,0.8115]
[1734979102435,3.0,3331.0,3330.5,0.06839802]
[1734979102738,3.0023,3330.8,3330.5,0.06839802]
[1734979102938,3.0023,3330.8,3330.1,0.7987]
[1734979103333,3.0023,3330.8,3330.2,0.06857991]
[1734979103631,0.30023,3330.8,3330.2,0.06857991]
[1734979104137,3.0,3330.8,3330.1,0.7987]
[1734979104695,6.00275,3330.3,3330.2,0.06857991]
[1734979105204,3.0,3330.4,3329.4,0.8083]
[1734979105412,3.0,3330.4,3329.5,0.0655335]
[1734979105621,3.0,3330.4,3329.4,0.8083]
[1734979105825,3.0,3330.4,3329.4,1.189484]
[1734979106042,3.0,3330.4,3329.5,0.0655335]
[1734979106835,3.0,3330.3,3329.5,0.0655335]
[1734979107223,3.0,3330.3,3329.4,1.189484]
[1734979108361,3.0,3330.3,3329.4,4.193014]
[1734979108662,3.0,3330.3,3329.5,0.06610764]
[1734979108958,0.683372,3330.3,3329.5,0.06610764]
[1734979109162,3.00295,3330.1,3329.5,0.06610764]
[1734979109358,3.00293,3330.1,3329.4,0.8083]
[1734979109546,3.00293,3330.1,3329.6,0.06603654]
[1734979109747,3.00293,3330.1,3329.5,0.0660972]
[1734979109922,3.686112,3330.3,3329.7,0.06597588]
[1734979110125,0.683372,3330.3,3329.6,0.06603654]
[1734979110345,3.0,3330.6,3329.6,3.00333]
[1734979110722,3.0,3330.6,3329.7,0.06599154]
[1734979110918,3.0,3330.5,3329.7,0.06599154]
[1734979111371,6.00256,3330.5,3329.7,0.06599154]
[1734979111532,6.00256,3330.5,3329.4,3.81183]
[1734979111734,6.00256,3330.5,3329.8,0.06593089]
[1734979112033,6.00256,3330.5,3329.9,0.06587024]
[1734979112233,6.00256,3330.5,3329.4,4.193013]
[1734979112234,3.0,3330.7,3329.4,1.189483]
[1734979112564,3.0,3330.6,3329.6,3.00331]
[1734979112767,3.00243,3330.7,3329.5,0.87601286]
[1734979112768,0.55,3330.7,3329.5,0.87601286]
[1734979112947,3.00301,3330.0,3329.7,0.06599154]
[1734979113155,3.00301,3330.0,3329.5,0.8099]
[1734979113624,3.00278,3330.3,3329.6,0.06638623]
[1734979113821,3.300278,3330.2,3329.6,0.06638623]
[1734979114173,3.0,3330.4,3329.6,0.06638623]
[1734979114473,3.0,3330.5,3329.5,0.8099]
[1734979114639,0.8061,3330.8,3329.5,0.8099]
[1734979114640,3.8061,3330.8,3329.5,0.8099]
[1734979114968,3.0,3330.7,3329.6,0.06419161]
[1734979115262,3.00293,3330.1,3329.5,0.8099]
[1734979115773,3.00293,3330.1,3329.6,0.06418639]
[1734979116123,3.0,3330.4,3329.6,0.06418639]
[1734979116326,3.0,3330.2,3329.6,0.06418639]
[1734979116526,3.0,3330.2,3329.5,0.8099]
[1734979116717,3.0,3330.2,3329.7,0.06412573]
[1734979116920,3.8598855,3330.4,3329.6,0.06418639]
[1734979117153,3.8598855,3330.4,3329.8,0.06406508]
[1734979117369,0.58005148,3330.3,3329.7,0.06412573]
[1734979117662,0.58005148,3330.3,3329.8,0.06406508]
[1734979118019,0.58005148,3330.3,3329.5,0.8099]
[1734979118219,3.58286148,3330.3,3329.6,0.06418639]
[1734979118573,3.66113615,3330.2,3329.6,0.06418639]
[1734979118771,3.00327,3329.7,3329.6,0.06418639]
[1734979119075,3.00327,3329.7,3329.1,0.7978]
[1734979119273,3.00336,3329.6,3329.1,0.7978]
[1734979119572,3.0,3329.7,3329.2,0.06442906]
[1734979119721,3.3,3329.7,3329.2,0.06442906]
[1734979119924,3.0,3329.6,3329.2,0.06442906]
[1734979120322,3.0,3329.6,3329.1,0.7978]
[1734979120623,3.0,3329.6,3329.2,0.06455438]
[1734979120822,3.0,3329.6,3329.1,0.7978]
[1734979121156,3.0,3329.6,3329.2,0.06455438]
[1734979121965,0.3,3329.7,3329.2,0.06455438]
[1734979122171,6.00302,3330.0,3329.2,0.06455438]
[1734979122473,3.0,3330.0,3329.2,0.06455438]
[1734979122964,0.755,3330.1,3329.2,0.06455438]
[1734979123189,3.755,3330.1,3329.2,0.06455438]
[1734979123371,3.755,3330.1,3329.1,0.7978]
[1734979123372,3.0,3330.0,3329.1,0.7978]
[1734979123669,3.0,3330.1,3329.2,0.06464316]
[1734979123967,3.72411876,3330.1,3329.2,0.06464316]
[1734979124170,3.0,3330.1,3329.2,0.06464316]
[1734979124952,5.01596481,3330.8,3329.5,0.792]
[1734979125156,5.01596481,3330.8,3329.9,3.00302]
[1734979125157,1.25051481,3330.8,3329.9,3.00302]
[1734979125356,1.25051481,3330.8,3330.0,0.792]
[1734979125570,1.25051481,3330.8,3330.0,0.85615788]
[1734979125571,3.00276,3330.3,3330.0,0.85615788]
[1734979125771,3.303076,3330.3,3329.3,0.792]
[1734979126139,3.303076,3330.3,3329.4,0.06452182]
[1734979126361,3.0,3330.2,3329.4,0.06452182]
[1734979127775,3.303076,3330.3,3329.4,0.06452182]
[1734979128684,0.300276,3330.3,3329.4,3.06806182]
[1734979128880,0.300276,3330.3,3329.4,3.454068]
[1734979129050,3.303036,3330.3,3329.4,0.450528]
[1734979129248,0.300276,3330.3,3329.4,0.06452182]
[1734979129458,3.00264,3330.4,3329.3,3.78613046]
[1734979129665,3.00274,3330.3,3329.3,0.78258046]
[1734979129838,3.00274,3330.3,3329.4,0.06240242]
[1734979130047,3.003,3330.0,3329.4,0.06240242]
[1734979130238,3.0,3330.2,3329.3,0.78258046]
[1734979130445,3.00307,3330.0,3329.3,0.78258046]
[1734979130767,1.3524,3329.9,3328.2,0.1685579]
[1734979131070,1.3524,3329.9,3328.4,0.06300927]
[1734979131071,3.00356,3329.4,3328.4,0.06300927]
[1734979131440,3.0037,3329.3,3328.4,0.06300927]
[1734979132041,3.0037,3329.3,3328.3,0.3783879]
[1734979132291,3.72912148,3329.3,3328.4,0.06300927]
[1734979132471,1.25051481,3329.4,3328.5,0.7728]
[1734979132873,1.25051481,3329.4,3328.5,3.77713]
[1734979133246,1.25051481,3329.4,3328.6,0.06288787]
[1734979133449,1.25051481,3329.1,3328.6,0.06288787]
[1734979134076,1.25051481,3329.1,3328.7,3.00415]
[1734979134499,1.25051481,3329.1,3328.8,0.06276649]
[1734979134882,1.87577222,3329.3,3328.8,3.00406]
[1734979134883,1.25051481,3329.3,3328.8,3.00406]
[1734979135167,1.25051481,3329.3,3328.9,1.15335282]
[1734979135396,1.25051481,3329.3,3328.9,0.7901]
[1734979135597,1.25051481,3329.3,3329.0,0.06278614]
[1734979135802,3.0,3329.5,3329.0,0.06278614]
[1734979136010,1.25051481,3329.6,3329.0,0.06278614]
[1734979136212,1.25051481,3329.6,3328.9,0.7901]
[1734979136512,1.25051481,3329.6,3329.0,0.06278614]
[1734979137215,1.03590218,3329.6,3329.0,0.06278614]
[1734979138242,2.59007088,3329.6,3329.2,3.00369]
[1734979138362,2.59007088,3329.6,3329.3,0.8148]
[1734979139011,3.39167088,3329.6,3328.6,0.8148]
[1734979139428,3.0,3329.5,3328.7,0.0632136]
[1734979139580,1.03590218,3329.7,3328.7,0.45144296]
[1734979139787,4.03590218,3329.7,3328.8,3.00408]
[1734979140317,1.03590218,3329.7,3328.9,0.06315491]
[1734979140469,4.03590218,3329.7,3328.9,0.06315491]
[1734979140669,4.03590218,3329.7,3328.6,3.81898]
[1734979140916,1.25051481,3329.5,3328.6,4.200878]
[1734979141119,0.8016,3329.4,3328.7,0.06327628]
[1734979141607,3.0,3329.1,3328.7,0.06327628]
[1734979141814,3.0,3329.1,3328.6,0.8148]
[1734979141966,3.0,3329.3,3328.8,0.06321559]
[1734979142164,0.680516,3329.2,3328.7,0.06327628]
[1734979142414,1.25051481,3329.5,3328.6,0.8148]
[1734979142415,4.25051481,3329.5,3328.6,0.8148]
[1734979142620,1.25051481,3329.0,3328.8,0.06321559]
[1734979142821,1.25051481,3329.0,3328.6,3.81904]
[1734979143021,1.25051481,3329.0,3328.9,0.06315491]
[1734979143321,1.25051481,3329.0,3328.9,0.86655491]
[1734979143473,1.25051481,3329.0,3328.9,3.80739]
[1734979143676,1.25051481,3329.4,3328.9,1.24729391]
[1734979143908,1.25051481,3329.4,3328.9,0.86655491]
[1734979144220,1.25051481,3329.4,3329.3,3.80703]
[1734979144589,1.25051481,3329.5,3329.3,3.87002577]
[1734979144922,1.25051481,3329.5,3329.4,0.8171]
[1734979145273,1.25051481,3329.5,3329.4,3.8835751]
[1734979145476,1.25051481,3329.5,3329.4,4.27193261]
[1734979146395,3.12628704,3330.0,3329.4,4.27193261]
[1734979146396,1.25051481,3330.0,3329.5,0.8095]
[1734979146592,1.25051481,3330.0,3329.9,3.00309]
[1734979146823,1.25051481,3330.0,3329.9,3.81259]
[1734979147021,1.25051481,3330.0,3329.9,3.87487712]
[1734979147321,1.25051481,3330.0,3329.9,4.26236483]
[1734979147728,9.21e-06,3330.2,3330.1,0.7673]
[1734979147888,3.13020887,3330.3,3330.2,6.77012]
[1734979148091,3.12628704,3330.5,3330.4,3.00255]
[1734979148092,1.25566662,3330.5,3330.4,3.00255]
[1734979148287,1.25566662,3330.5,3330.4,6.76985]
[1734979148474,1.25566662,3330.5,3330.4,8.7650128]
[1734979148809,1.25566662,3330.5,3330.4,11.36126775]
[1734979149425,2.07539004,3332.1,3331.1,3.00197]
[1734979149643,2.07539004,3332.1,3331.2,0.7709]
[1734979149773,2.07539004,3332.1,3331.2,0.83119308]
[1734979149975,3.0,3332.0,3331.2,0.83119308]
[1734979150229,3.13059228,3332.1,3331.4,3.00166]
[1734979150530,0.35517693,3332.4,3331.5,0.05964162]
[1734979150873,3.12628704,3332.5,3331.5,0.05964162]
[1734979151079,3.12628704,3332.5,3331.6,3.00155]
[1734979151316,5.31011892,3332.5,3331.2,0.7709]
[1734979151478,3.0,3332.2,3331.7,0.05952045]
[1734979151679,0.600095,3332.1,3331.2,3.77281]
[1734979151924,0.600095,3332.1,3331.8,0.05945987]
[1734979152137,0.600095,3332.1,3331.2,3.77281]
[1734979152436,0.600095,3332.1,3331.9,0.05939929]
[1734979152580,3.35517693,3332.4,3331.2,0.7709]
[1734979153099,3.0,3332.1,3331.3,0.05976281]
[1734979154654,2.59625495,3332.5,3331.3,0.05976281]
[1734979154655,0.8235,3332.6,3331.5,3.00159]
[1734979154828,0.8235,3332.6,3331.3,0.08977949]
[1734979155043,0.35517693,3333.1,3331.8,3.00134]
[1734979155044,0.822,3332.9,3331.8,3.00134]
[1734979155241,3.00002,3333.4,3331.9,0.0593106]
[1734979155242,4.57354445,3333.2,3331.9,0.0593106]
[1734979155557,7.57366445,3333.2,3332.0,0.7559]
[1734979155949,0.822,3333.2,3332.1,3.06028946]
[1734979156323,3.00021,3333.1,3332.1,0.05918946]
[1734979156571,3.382221,3333.0,3332.1,0.05918946]
[1734979157666,3.0,3332.9,3332.1,0.05918946]
[1734979158366,0.382221,3333.0,3332.1,0.05918946]
[1734979158539,0.382221,3333.0,3332.0,3.75709]
[1734979159061,0.382221,3333.0,3332.1,0.05889217]
[1734979160268,3.0,3333.0,3331.8,0.8253]
[1734979160425,3.0,3333.0,3331.9,0.05901331]
[1734979160627,3.00047,3332.9,3331.9,0.05901331]
[1734979160832,3.00047,3332.9,3331.8,3.82666]
[1734979161029,3.00048,3332.8,3332.0,0.05895274]
[1734979161255,3.0,3333.0,3331.8,0.8253]
[1734979161256,3.00066,3332.6,3331.9,0.05901331]
[1734979161421,0.7998,3332.6,3332.1,0.05889217]
[1734979161751,0.7998,3332.6,3331.8,0.8253]
[1734979162374,0.7998,3332.6,3331.9,0.05845521]
[1734979162873,3.00085,3332.4,3331.9,0.05845521]
[1734979163066,3.300085,3332.3,3331.9,0.05845521]
[1734979165089,0.300085,3332.3,3331.9,0.05845521]
[1734979165390,3.0,3332.3,3331.9,0.05845521]
[1734979165590,3.0,3332.8,3331.4,0.7615]
[1734979165752,0.7998,3333.3,3332.1,0.7615]
[1734979165960,3.79985,3333.3,3332.1,0.7615]
[1734979166157,0.7998,3333.3,3332.2,0.05829436]
[1734979166495,3.00021,3333.1,3332.2,0.05829436]
[1734979166670,0.300021,3333.0,3332.2,0.05829436]
[1734979166992,3.300021,3333.0,3332.2,0.05829436]
[1734979167359,3.300351,3333.0,3332.2,0.05829436]
[1734979167560,0.300021,3333.0,3332.2,0.05829436]
[1734979169057,0.8094,3333.6,3332.4,0.7595]
[1734979169273,2.99964,3333.8,3332.6,3.7601]
[1734979169590,2.99964,3333.8,3332.7,0.05773088]
[1734979169789,0.8094,3333.9,3332.8,0.7595]
[1734979170198,2.99969,3333.7,3332.9,0.05760979]
[1734979170349,0.380909,3333.6,3332.9,0.05760979]
[1734979171251,0.380909,3333.6,3332.8,0.7595]
[1734979171498,0.380909,3333.6,3332.9,0.05712508]
[1734979171707,3.0,3333.3,3332.9,0.05712508]
[1734979171901,6.0003,3333.0,3332.9,0.05712508]
[1734979172064,6.60033,3333.0,3332.1,0.7595]
[1734979172267,0.60003,3333.0,3332.1,0.7595]
[1734979172586,0.60003,3333.0,3332.2,0.05502641]
[1734979173984,0.55,3333.3,3332.2,0.05502641]
[1734979174305,3.00071,3332.6,3332.2,0.05502641]
[1734979174609,3.0,3332.9,3332.2,0.05502641]
[1734979174823,3.00078,3332.5,3331.3,0.8069]
[1734979175112,0.300078,3332.4,3331.4,0.05551104]
[1734979175319,3.00102,3332.2,3331.4,0.05551104]
[1734979175482,1.113478,3332.4,3331.4,0.05551104]
[1734979175690,4.114338,3332.4,3331.4,0.05551104]
[1734979176117,3.0,3332.1,3331.4,0.05551104]
[1734979176317,3.0014,3331.8,3331.0,0.8069]
[1734979176499,3.601322,3332.0,3331.0,0.8069]
[1734979176701,3.00129,3331.9,3331.5,0.05545045]
[1734979176871,3.00129,3331.9,3331.0,0.8069]
[1734979177315,3.00113,3332.1,3331.1,0.05569284]
[1734979177522,3.0,3332.2,3331.1,0.05569284]
[1734979177674,3.7114438,3332.2,3331.1,0.44215912]
[1734979178314,3.0,3332.1,3331.1,0.44215912]
[1734979179780,3.7124638,3332.2,3331.1,0.44215912]
[1734979179781,3.00192,3331.2,3331.1,0.05569284]
[1734979179983,3.00202,3331.1,3330.6,0.7983]
[1734979180186,3.00192,3331.2,3331.1,0.05569284]
[1734979180379,3.00192,3331.2,3329.9,1.54657106]
[1734979180380,3.00223,3330.9,3330.2,0.7983]
[1734979180816,3.00204,3331.1,3330.2,0.7983]
[1734979181000,3.0,3331.2,3330.2,0.7983]
[1734979181437,3.00166,3331.5,3330.3,0.7554]
[1734979181724,0.8294,3331.7,3330.6,3.00244]
[1734979181725,3.0015,3331.7,3330.6,3.00244]
[1734979181923,3.0,3331.9,3330.7,1.067144]
[1734979182127,3.0,3331.9,3330.8,0.7669]
[1734979182922,3.7114438,3332.2,3330.8,0.7669]
[1734979183119,3.7114438,3332.2,3330.4,3.03001836]
[1734979183120,3.0,3332.0,3330.6,0.7577]
[1734979183306,4.24644897,3332.3,3331.3,0.8301]
[1734979183800,3.0,3332.3,3331.3,0.8301]
[1734979184125,3.00067,3332.6,3331.5,3.78403]
[1734979184297,1.24644897,3333.0,3331.6,0.7824]
[1734979184298,5.06720897,3333.0,3331.6,0.7824]
[1734979184497,3.00074,3332.6,3331.6,0.7824]
[1734979185333,3.0,3332.5,3331.6,0.7824]
[1734979185504,3.00099,3332.3,3331.6,0.7824]
[1734979185704,3.00104,3332.2,3331.6,0.7824]
[1734979185956,3.0013,3331.9,3330.6,0.777]
[1734979186136,3.0013,3331.9,3331.7,0.05702697]
[1734979186637,3.00138,3331.8,3330.7,4.1166455]
[1734979186992,3.00138,3331.8,3330.8,0.05756194]
[1734979187532,3.00148,3331.7,3330.8,0.05756194]
[1734979187889,3.00152,3331.7,3330.8,0.05756194]
[1734979188312,6.00111,3332.1,3330.8,0.05756194]
[1734979188507,3.00132,3331.9,3330.8,0.05756194]
[1734979189125,3.00132,3331.9,3330.8,3.05982194]
[1734979189321,3.7691,3332.3,3330.9,3.78458]
[1734979189641,3.0,3331.9,3331.0,0.05744071]
[1734979190345,1.24644897,3332.5,3331.1,0.7824]
[1734979190495,3.00093,3332.3,3331.4,0.7824]
[1734979190695,3.00093,3332.3,3331.5,0.43571722]
[1734979191747,3.0011,3332.2,3331.5,0.05729922]
[1734979193014,3.0011,3332.2,3331.4,0.7824]
[1734979193344,3.00091,3332.4,3331.4,0.7824]
[1734979193560,3.00091,3332.4,3331.5,0.05675221]
[1734979193967,4.24735897,3332.4,3331.5,0.05675221]
[1734979194138,4.24735897,3332.4,3331.5,0.44084843]
[1734979194665,1.24644897,3332.4,3331.8,2.59625495]
[1734979194883,1.24644897,3332.4,3332.0,0.7956]
[1734979195039,1.03465153,3332.3,3332.2,3.79662]
[1734979195369,1.03465153,3332.3,3332.2,4.23259975]
[1734979196529,1.03465153,3333.1,3332.5,3.00066]
[1734979196729,1.03465153,3333.1,3332.6,3.05643198]
[1734979197038,1.03465153,3333.1,3332.7,0.7826]
[1734979197221,1.03465153,3333.1,3332.7,1.09171514]
[1734979197573,1.03465153,3333.1,3332.8,0.05552741]
[1734979197777,2.99976,3333.6,3332.7,4.09225514]
[1734979197778,1.24644897,3333.4,3332.7,4.09225514]
[1734979197943,1.24644897,3333.4,3332.9,0.05541481]
[1734979198149,1.24644897,3333.4,3332.7,3.78314]
[1734979198336,1.24644897,3333.4,3333.0,0.05535427]
[1734979198641,1.24644897,3333.4,3332.7,3.78314]
[1734979198838,1.24644897,3333.4,3332.8,0.378314]
[1734979199043,1.24644897,3333.4,3332.8,0.43378935]
[1734979199245,1.24644897,3333.4,3332.8,0.378314]
[1734979199478,3.0,3333.5,3332.8,0.378314]
[1734979199683,4.24644897,3333.6,3332.8,0.378314]
[1734979199837,4.24644897,3333.6,3332.9,0.4161454]
[1734979200388,4.24644897,3333.6,3332.7,3.78314]
[1734979200389,4.24644897,3333.6,3332.7,0.7826]
[1734979200683,3.00024,3333.1,3332.3,0.7624]
[1734979200980,1.12617693,3333.5,3332.8,2.59625495]
[1734979200981,2.58831631,3333.5,3332.8,2.59625495]
[1734979201129,2.58831631,3333.5,3332.9,1.07962549]
[1734979201330,2.58831631,3333.5,3333.2,3.00011]
[1734979201572,2.58831631,3333.5,3333.3,0.05255181]
[1734979201771,2.58831631,3333.5,3333.4,0.8172]
[1734979201976,2.58831631,3333.5,3333.4,0.86969129]
[1734979202427,1.24644897,3334.0,3333.4,0.05249129]
[1734979202631,2.99962,3333.8,3333.1,0.783]
[1734979202832,1.24644897,3334.0,3333.5,0.05243077]
[1734979203060,1.24644897,3334.0,3333.1,0.783]
[1734979203061,4.24584897,3334.0,3333.1,0.783]
[1734979203380,1.24644897,3334.0,3333.2,0.05261234]
[1734979204043,5.99939,3334.1,3333.2,0.05261234]
[1734979204375,2.95,3333.9,3333.2,0.05261234]
[1734979204556,2.99948,3334.0,3333.2,0.43620057]
[1734979205075,4.24567897,3334.2,3333.2,3.43629057]
[1734979205376,1.24644897,3334.2,3333.2,0.43620057]
[1734979205545,4.24568897,3334.2,3333.2,0.05261234]
[1734979205744,4.24568897,3334.2,3333.2,3.05270234]
[1734979206147,1.24644897,3334.2,3333.2,0.05261234]
[1734979206338,3.0,3334.0,3333.1,3.78319]
[1734979206541,1.24644897,3334.2,3333.2,0.05225881]
[1734979206882,3.0,3334.1,3333.3,0.38354488]
[1734979207177,3.0,3334.1,3333.4,0.05213776]
[1734979207688,2.99931,3334.1,3333.4,0.05213776]
[1734979207977,3.0,3334.0,3333.3,0.38354488]
[1734979208276,3.0,3334.0,3333.5,0.05207724]
[1734979208476,3.0,3334.0,3333.4,0.05213776]
[1734979208691,3.0,3334.0,3333.4,0.42188726]
[1734979208866,3.0,3334.2,3333.4,0.42188726]
[1734979209584,5.9993,3334.2,3333.5,0.05209803]
[1734979210512,2.99934,3334.1,3333.5,0.05209803]
[1734979210710,1.24644897,3334.4,3333.5,0.05209803]
[1734979210863,3.0,3334.2,3333.5,0.05209803]
[1734979211067,0.8289,3334.5,3333.6,0.7831]
[1734979211266,2.99914,3334.3,3333.7,0.378292]
[1734979211470,2.99908,3334.4,3333.7,0.05196141]
[1734979211671,2.99934,3334.1,3333.7,0.05196141]
[1734979211897,0.8289,3334.5,3333.6,0.7831]
[1734979212103,5.99914,3334.3,3333.8,0.05162537]
[1734979212303,3.0,3334.4,3333.7,0.05168588]
[1734979212524,4.24644897,3334.6,3333.6,0.7831]
[1734979212717,4.24532897,3334.6,3333.7,0.378292]
[1734979212899,1.24644897,3334.6,3333.7,0.42997788]
[1734979213087,3.0,3334.4,3333.7,0.42997788]
[1734979213885,3.763,3334.8,3333.8,0.0299946]
[1734979214114,3.0,3334.6,3333.7,0.42997788]
[1734979214287,3.0,3334.5,3333.9,0.05156487]
[1734979214482,3.0,3334.5,3333.8,0.47290716]
[1734979214712,3.0,3334.7,3334.0,0.05150437]
[1734979214918,3.0,3334.7,3333.9,0.05156487]
[1734979215239,3.0,3334.7,3334.0,0.05150437]
[1734979215383,3.0,3334.7,3334.0,0.39873799]
[1734979215584,3.76169,3334.8,3334.0,0.39873799]
[1734979215585,1.24644897,3335.1,3334.3,2.99912]
[1734979215915,1.24644897,3335.1,3334.4,0.02998988]
[1734979216095,1.24644897,3335.1,3334.6,2.99884]
[1734979216300,1.24644897,3335.1,3334.7,0.30796454]
[1734979216539,1.24644897,3335.3,3334.8,0.7786]
[1734979217200,1.24644897,3335.3,3335.0,2.99849]
[1734979217381,1.24644897,3335.3,3335.1,2.99839]
[1734979217581,1.24644897,3335.3,3335.1,0.04994552]
[1734979217789,1.24644897,3335.3,3335.2,0.7533]
[1734979218022,1.24644897,3336.1,3335.2,0.80318506]
[1734979218760,1.24644897,3336.1,3335.2,1.18333557]
[1734979219040,4.24644897,3336.1,3335.2,1.18333557]
[1734979219747,3.28490107,3336.4,3335.4,2.99805]
[1734979219748,0.7877,3336.4,3335.4,2.99805]
[1734979220048,2.99709,3336.6,3335.6,2.99792]
[1734979220243,2.99709,3336.6,3335.5,0.04950641]
[1734979220430,2.99709,3336.6,3335.7,0.04938034]
[1734979220591,0.8049,3336.8,3335.6,0.43228742]
[1734979220790,2.99714,3336.6,3335.8,0.04931991]
[1734979220990,0.8049,3336.8,3335.8,0.04931991]
[1734979220991,3.8049,3336.8,3335.8,0.04931991]
[1734979221193,2.9982,3335.4,3334.9,0.7735]
[1734979221639,0.7547,3335.9,3335.0,0.04980349]
[1734979221821,0.6350955,3335.8,3335.0,0.04980349]
[1734979222611,2.99841,3335.1,3335.0,0.04980349]
[1734979222807,2.99854,3335.0,3334.5,0.7622]
[1734979223016,3.0,3335.4,3334.5,0.7622]
[1734979223454,2.9982,3335.4,3334.6,0.04906353]
[1734979223672,3.0,3335.3,3334.6,0.43010188]
[1734979223821,3.7728,3335.5,3334.6,0.43010188]
[1734979224160,3.0,3335.3,3334.6,0.43010188]
[1734979224515,0.7728,3335.5,3334.6,0.43010188]
[1734979224751,3.0,3335.5,3334.6,0.04906353]
[1734979225761,2.99799,3335.6,3334.5,0.7622]
[1734979225911,3.0,3335.5,3334.5,3.76111]
[1734979226209,3.0,3335.5,3334.6,0.0492245]
[1734979226857,3.77392,3335.8,3334.6,0.0492245]
[1734979227061,2.99796,3335.6,3334.7,0.38104145]
[1734979227230,3.0,3335.7,3334.8,3.77474]
[1734979227412,3.0,3335.7,3334.8,3.82382278]
[1734979227615,3.0,3335.7,3334.9,0.42048642]
[1734979227819,3.80088,3336.1,3334.9,3.46804873]
[1734979228117,2.9977,3335.9,3334.9,3.46804873]
[1734979228655,2.9977,3335.9,3334.9,0.46950873]
[1734979228883,0.8033,3336.1,3334.9,0.04902231]
[1734979229065,2.99777,3335.9,3334.9,0.04902231]
[1734979229384,3.39955495,3336.1,3334.9,0.04902231]
[1734979229680,2.99794,3335.7,3334.9,0.04902231]
[1734979230038,3.0,3335.9,3334.9,0.04902231]
[1734979230236,3.0,3335.9,3334.9,3.04756231]
[1734979230487,3.0,3335.9,3335.0,0.38236623]
[1734979230987,3.0,3335.9,3335.1,0.04882869]
[1734979232006,0.8194,3336.3,3335.2,0.7796]
[1734979232298,0.8194,3336.3,3335.2,0.85940233]
[1734979232768,3.0,3336.0,3335.2,0.85940233]
[1734979232961,0.681693,3336.0,3335.2,0.85940233]
[1734979233175,3.0,3335.7,3335.2,0.85940233]
[1734979233794,3.0,3336.0,3335.2,0.85940233]
[1734979234103,5.99742,3336.2,3335.2,3.85764233]
[1734979234279,3.0,3335.9,3335.2,0.7796]
[1734979234605,3.0,3335.9,3335.3,0.07967346]
[1734979235474,3.0,3336.1,3335.3,0.07967346]
[1734979235684,3.0,3336.1,3335.3,0.46543881]
[1734979236851,0.8194,3336.3,3335.3,0.46543881]
[1734979237401,3.0,3336.4,3335.4,2.99806]
[1734979237642,0.8109,3336.6,3335.5,3.82767]
[1734979237802,1.7513055,3336.6,3335.5,0.9090742]
[1734979237976,2.99762,3336.0,3335.5,0.8297]
[1734979238297,2.99762,3336.0,3335.6,0.07931802]
[1734979238497,2.99745,3336.2,3335.6,0.07931802]
[1734979238802,2.99745,3336.2,3335.7,0.07926185]
[1734979239099,0.899469,3336.1,3335.3,0.7638]
[1734979239398,2.99741,3336.3,3335.3,0.7638]
[1734979239599,2.99742,3336.2,3335.4,0.07945115]
[1734979240100,3.0,3336.1,3335.4,0.07945115]
[1734979240503,3.0,3336.3,3335.4,0.07945115]
[1734979240801,3.0,3336.3,3335.4,3.07756115]
[1734979241397,4.03183005,3336.3,3335.4,0.07945115]
[1734979241576,1.03448005,3336.3,3335.4,3.07756115]
[1734979242514,4.03182005,3336.3,3335.4,3.07756115]
[1734979243008,2.99787,3335.7,3335.4,0.07945115]
[1734979243158,2.99781,3335.8,3335.3,0.7638]
[1734979243358,3.8203,3336.0,3335.4,0.07928499]
[1734979243561,6.81793,3336.0,3335.3,0.7638]
[1734979244008,3.0,3335.8,3335.3,0.7638]
[1734979244215,3.9414255,3335.8,3335.3,0.7638]
[1734979244382,3.9414255,3335.8,3335.4,0.07928499]
[1734979246001,3.9414255,3335.8,3335.3,0.7638]
[1734979246165,3.0,3335.8,3335.3,0.7638]
[1734979247006,3.8203,3336.0,3335.3,0.7638]
[1734979247206,3.0,3336.0,3335.3,0.7638]
[1734979247591,3.0,3336.0,3335.4,0.07949266]
[1734979248007,3.0,3336.0,3335.3,3.76199]
[1734979248217,3.0,3336.0,3335.3,4.138189]
[1734979248512,3.0,3336.0,3335.4,0.07944593]
[1734979249281,3.0,3336.0,3335.4,3.07757593]
[1734979249485,5.59625495,3335.8,3335.4,0.07944593]
[1734979249686,1.15940249,3335.7,3335.4,0.07944593]
[1734979249980,3.0,3335.8,3335.3,0.7638]
[1734979250190,3.0,3336.0,3335.4,0.0793992]
[1734979251499,4.24644897,3336.3,3335.5,2.99797]
[1734979252010,4.24644897,3336.3,3335.6,0.07928684]
[1734979252490,3.0,3336.1,3335.3,0.7638]
[1734979252880,3.0,3336.1,3335.4,0.07940959]
[1734979253085,3.0,3336.1,3335.3,0.7638]
[1734979253995,2.99773,3335.9,3335.4,0.07940959]
[1734979254202,2.99805,3335.5,3335.4,0.07940959]
[1734979254383,2.99805,3335.5,3335.0,0.8059]
[1734979254582,2.99805,3335.5,3335.1,0.07969758]
[1734979255538,2.99805,3335.5,3335.0,0.8059]
[1734979256211,1.03228257,3335.4,3335.0,0.8059]
[1734979257797,2.99832,3335.2,3335.1,0.07997798]
[1734979258003,2.99832,3335.2,3334.7,0.7813]
[1734979258715,2.99832,3335.2,3334.8,0.08009464]
[1734979259242,2.58315405,3335.1,3334.9,0.08003325]
[1734979259400,2.58315405,3335.1,3334.7,0.7813]
[1734979259741,2.58315405,3335.1,3334.8,0.08009464]
[1734979260091,2.58315405,3335.1,3334.7,0.7813]
[1734979260307,5.58158405,3335.1,3334.7,1.15933]
[1734979260513,0.8188,3335.1,3334.8,0.08009464]
[1734979260714,3.82960302,3335.3,3334.4,0.7664]
[1734979260909,3.82960302,3335.3,3334.5,2.99895]
[1734979261140,3.82960302,3335.3,3335.0,0.8219]
[1734979261511,3.82960302,3335.3,3335.1,0.08005069]
[1734979261716,3.82960302,3335.3,3335.2,2.99832]